[Event "Titled Tuesday Blitz August 22 Late 2023"]
[White "Vaglio Munoz, Jaime"]
[Black "ArchibaldCerveza29"]
[WhiteFideId "6500145"]
[WhiteElo "2285"]
[BlackElo "2444"]
[Result "0-1"]
[Round "8"]
[TimeControl "180+1"]
[Date "2023.08.22"]
[WhiteClock "0:00:53"]
[BlackClock "0:00:59"]
[Board "127"]

1. Nf3 {[%clk 0:03:00]}  c5 {[%clk 0:02:54]} 2. c4 {[%clk 0:03:01]}  Nf6 {[%clk 0:02:51]} 3. b3 {[%clk 0:03:01]}  Nc6 {[%clk 0:02:49]} 4. Bb2 {[%clk 0:03:02]}  g6 {[%clk 0:02:49]} 5. g3 {[%clk 0:03:02]}  Bg7 {[%clk 0:02:50]} 6. Bg2 {[%clk 0:03:02]}  O-O {[%clk 0:02:50]} 7. O-O {[%clk 0:03:02]}  d5 {[%clk 0:02:49]} 8. Ne5 {[%clk 0:03:00]}  Nxe5 {[%clk 0:02:45]} 9. Bxe5 {[%clk 0:02:59]}  d4 {[%clk 0:02:42]} 10. d3 {[%clk 0:02:52]}  Qb6 {[%clk 0:02:38]} 11. Nd2 {[%clk 0:02:45]}  Bf5 {[%clk 0:02:32]} 12. a3 {[%clk 0:02:45]}  a5 {[%clk 0:02:30]} 13. Rb1 {[%clk 0:02:43]}  Nd7 {[%clk 0:02:26]} 14. Bxg7 {[%clk 0:02:42]}  Kxg7 {[%clk 0:02:27]} 15. b4 {[%clk 0:02:38]}  axb4 {[%clk 0:02:27]} 16. axb4 {[%clk 0:02:39]}  cxb4 {[%clk 0:02:23]} 17. Qb3 {[%clk 0:02:39]}  Nc5 {[%clk 0:02:22]} 18. Qxb4 {[%clk 0:02:38]}  Qxb4 {[%clk 0:02:22]} 19. Rxb4 {[%clk 0:02:38]}  Ra2 {[%clk 0:02:22]} 20. Rd1 {[%clk 0:02:36]}  Bg4 {[%clk 0:02:01]} 21. Kf1 {[%clk 0:02:33]}  Nxd3 {[%clk 0:02:00]} 22. Rxb7 {[%clk 0:02:28]}  Ne5 {[%clk 0:01:56]} 23. h3 {[%clk 0:02:21]}  Be6 {[%clk 0:01:51]} 24. Rxe7 {[%clk 0:02:17]}  Nxc4 {[%clk 0:01:49]} 25. Nf3 {[%clk 0:02:10]}  Rd8 {[%clk 0:01:38]} 26. g4 {[%clk 0:02:06]}  Kf6 {[%clk 0:01:37]} 27. Rc7 {[%clk 0:02:05]}  d3 {[%clk 0:01:36]} 28. g5+ {[%clk 0:01:57]}  Kg7 {[%clk 0:01:35]} 29. exd3 {[%clk 0:01:48]}  Nb2 {[%clk 0:01:35]} 30. Rd2 {[%clk 0:01:47]}  Ra1+ {[%clk 0:01:35]} 31. Ne1 {[%clk 0:01:46]}  Nxd3 {[%clk 0:01:34]} 32. Re2 {[%clk 0:01:44]}  Nf4 {[%clk 0:01:27]} 33. Re3 {[%clk 0:01:34]}  Rdd1 {[%clk 0:01:25]} 34. Rxe6 {[%clk 0:01:11]}  Nxe6 {[%clk 0:01:21]} 35. Ke2 {[%clk 0:01:07]}  Rxe1+ {[%clk 0:01:21]} 36. Kf3 {[%clk 0:01:06]}  Nxc7 {[%clk 0:01:22]} 37. Kg3 {[%clk 0:01:06]}  Ra3+ {[%clk 0:01:21]} 38. Kh4 {[%clk 0:01:04]}  Ne6 {[%clk 0:01:20]} 39. f4 {[%clk 0:01:04]}  Rg1 {[%clk 0:01:17]} 40. Bd5 {[%clk 0:01:03]}  Nxf4 {[%clk 0:01:02]} 41. Bc4 {[%clk 0:00:53]}  Rxh3# {[%clk 0:00:59]} 0-1


[Site "https://www.chess.com"]

[Event "Titled Tuesday Blitz August 22 Late 2023"]
[White "Cardozo Munar, Carlos Eduardo"]
[Black "Ochkoos, Jura"]
[WhiteFideId "4409477"]
[BlackFideId "2601214"]
[WhiteElo "2277"]
[BlackElo "2387"]
[Result "1-0"]
[Round "8"]
[TimeControl "180+1"]
[Date "2023.08.22"]
[WhiteClock "0:00:23"]
[BlackClock "0:00:31"]
[Board "129"]

1. d4 {[%clk 0:02:58]}  d5 {[%clk 0:02:59]} 2. c3 {[%clk 0:02:36]}  e6 {[%clk 0:02:58]} 3. Nf3 {[%clk 0:02:16]}  c5 {[%clk 0:02:57]} 4. e3 {[%clk 0:02:12]}  Nc6 {[%clk 0:02:57]} 5. Bd3 {[%clk 0:02:10]}  f5 {[%clk 0:02:54]} 6. h3 {[%clk 0:01:45]}  Nf6 {[%clk 0:02:53]} 7. g4 {[%clk 0:01:45]}  c4 {[%clk 0:02:30]} 8. Bc2 {[%clk 0:01:40]}  Bd7 {[%clk 0:02:28]} 9. Qe2 {[%clk 0:01:37]}  Bd6 {[%clk 0:02:26]} 10. gxf5 {[%clk 0:01:37]}  exf5 {[%clk 0:02:26]} 11. Rg1 {[%clk 0:01:38]}  O-O {[%clk 0:02:24]} 12. Nbd2 {[%clk 0:01:31]}  Ne4 {[%clk 0:02:19]} 13. Nf1 {[%clk 0:01:25]}  Qa5 {[%clk 0:02:03]} 14. Bd2 {[%clk 0:01:25]}  Rae8 {[%clk 0:02:02]} 15. Ng5 {[%clk 0:01:22]}  h6 {[%clk 0:01:57]} 16. Nxe4 {[%clk 0:01:06]}  fxe4 {[%clk 0:01:56]} 17. Qh5 {[%clk 0:01:07]}  Bf5 {[%clk 0:01:39]} 18. Qxh6 {[%clk 0:01:03]}  g6 {[%clk 0:01:22]} 19. Rxg6+ {[%clk 0:01:01]}  Bxg6 {[%clk 0:01:22]} 20. Qxg6+ {[%clk 0:01:02]}  Kh8 {[%clk 0:01:22]} 21. Qxd6 {[%clk 0:01:02]}  Re7 {[%clk 0:01:14]} 22. Ng3 {[%clk 0:01:01]}  Qc7 {[%clk 0:01:11]} 23. Qxd5 {[%clk 0:00:55]}  Ref7 {[%clk 0:01:10]} 24. Nxe4 {[%clk 0:00:48]}  Rxf2 {[%clk 0:01:00]} 25. Nxf2 {[%clk 0:00:46]}  Qg3 {[%clk 0:00:59]} 26. O-O-O {[%clk 0:00:46]}  Rxf2 {[%clk 0:00:50]} 27. Qh5+ {[%clk 0:00:46]}  Kg8 {[%clk 0:00:49]} 28. Qg6+ {[%clk 0:00:39]}  Qxg6 {[%clk 0:00:48]} 29. Bxg6 {[%clk 0:00:39]}  Ne7 {[%clk 0:00:47]} 30. Be4 {[%clk 0:00:37]}  b5 {[%clk 0:00:47]} 31. h4 {[%clk 0:00:36]}  Kf7 {[%clk 0:00:41]} 32. h5 {[%clk 0:00:36]}  Rh2 {[%clk 0:00:40]} 33. Bg6+ {[%clk 0:00:36]}  Ke6 {[%clk 0:00:37]} 34. Rf1 {[%clk 0:00:35]}  Nxg6 {[%clk 0:00:36]} 35. hxg6 {[%clk 0:00:35]}  Rg2 {[%clk 0:00:37]} 36. Rf7 {[%clk 0:00:33]}  Rxg6 {[%clk 0:00:36]} 37. Rxa7 {[%clk 0:00:34]}  Kd5 {[%clk 0:00:37]} 38. Rc7 {[%clk 0:00:33]}  Ke4 {[%clk 0:00:36]} 39. Kc2 {[%clk 0:00:33]}  Rg5 {[%clk 0:00:35]} 40. Rc5 {[%clk 0:00:25]}  Rxc5 {[%clk 0:00:33]} 41. dxc5 {[%clk 0:00:26]}  Kd5 {[%clk 0:00:34]} 42. e4+ {[%clk 0:00:23]}  Kxc5 {[%clk 0:00:31]} 43. Be3+ {[%clk 0:00:23]} 1-0


[Site "https://www.chess.com"]

[Event "Titled Tuesday Blitz August 22 Late 2023"]
[White "petr577"]
[Black "Alfaro, William"]
[BlackFideId "6100457"]
[WhiteElo "2363"]
[BlackElo "2270"]
[Result "0-1"]
[Round "8"]
[TimeControl "180+1"]
[Date "2023.08.22"]
[WhiteClock "0:01:40"]
[BlackClock "0:01:48"]
[Board "131"]

1. e4 {[%clk 0:02:57]}  e5 {[%clk 0:02:59]} 2. Nf3 {[%clk 0:02:57]}  Nc6 {[%clk 0:02:59]} 3. Bb5 {[%clk 0:02:57]}  f5 {[%clk 0:02:54]} 4. d3 {[%clk 0:02:56]}  fxe4 {[%clk 0:02:54]} 5. dxe4 {[%clk 0:02:57]}  Nf6 {[%clk 0:02:54]} 6. Nc3 {[%clk 0:02:56]}  Bb4 {[%clk 0:02:54]} 7. O-O {[%clk 0:02:51]}  Bxc3 {[%clk 0:02:52]} 8. bxc3 {[%clk 0:02:51]}  d6 {[%clk 0:02:51]} 9. Qd3 {[%clk 0:02:40]}  O-O {[%clk 0:02:41]} 10. Bxc6 {[%clk 0:02:35]}  bxc6 {[%clk 0:02:40]} 11. Qc4+ {[%clk 0:02:35]}  Kh8 {[%clk 0:02:40]} 12. Qxc6 {[%clk 0:02:35]}  Bg4 {[%clk 0:02:40]} 13. Nd2 {[%clk 0:02:13]}  Rb8 {[%clk 0:01:52]} 14. Ba3 {[%clk 0:02:09]}  Be2 {[%clk 0:01:50]} 15. Rfe1 {[%clk 0:01:40]}  Bb5 {[%clk 0:01:48]} 0-1


[Site "https://www.chess.com"]

[Event "Titled Tuesday Blitz August 22 Late 2023"]
[White "Baghdasaryan, Vahe"]
[Black "Fernandez Hernandez, Gerardo"]
[WhiteFideId "13303139"]
[BlackFideId "2207400"]
[WhiteElo "2351"]
[BlackElo "2269"]
[Result "1-0"]
[Round "8"]
[TimeControl "180+1"]
[Date "2023.08.22"]
[WhiteClock "0:00:44"]
[BlackClock "0:00:00"]
[Board "132"]

1. e4 {[%clk 0:03:00]}  e6 {[%clk 0:02:55]} 2. d4 {[%clk 0:03:00]}  d5 {[%clk 0:02:56]} 3. Nd2 {[%clk 0:03:00]}  Nc6 {[%clk 0:02:56]} 4. Ngf3 {[%clk 0:02:59]}  Nf6 {[%clk 0:02:55]} 5. e5 {[%clk 0:02:59]}  Nd7 {[%clk 0:02:55]} 6. c3 {[%clk 0:02:59]}  f6 {[%clk 0:02:55]} 7. Bb5 {[%clk 0:02:59]}  Be7 {[%clk 0:02:41]} 8. O-O {[%clk 0:02:48]}  O-O {[%clk 0:02:41]} 9. Re1 {[%clk 0:02:40]}  fxe5 {[%clk 0:02:30]} 10. dxe5 {[%clk 0:02:38]}  Qe8 {[%clk 0:02:24]} 11. Bxc6 {[%clk 0:02:33]}  bxc6 {[%clk 0:02:23]} 12. Nd4 {[%clk 0:02:33]}  Qf7 {[%clk 0:02:04]} 13. N2f3 {[%clk 0:02:28]}  Bb7 {[%clk 0:01:50]} 14. Qc2 {[%clk 0:02:24]}  c5 {[%clk 0:01:45]} 15. Nb5 {[%clk 0:02:19]}  a6 {[%clk 0:01:38]} 16. Na3 {[%clk 0:02:05]}  d4 {[%clk 0:01:32]} 17. Ng5 {[%clk 0:01:59]}  Bxg5 {[%clk 0:01:21]} 18. Bxg5 {[%clk 0:02:00]}  Qf5 {[%clk 0:01:02]} 19. Qxf5 {[%clk 0:01:51]}  Rxf5 {[%clk 0:01:01]} 20. Bh4 {[%clk 0:01:32]}  Nxe5 {[%clk 0:00:58]} 21. Bg3 {[%clk 0:01:27]}  Nd3 {[%clk 0:00:46]} 22. Rxe6 {[%clk 0:01:25]}  Nxb2 {[%clk 0:00:41]} 23. Re7 {[%clk 0:01:11]}  dxc3 {[%clk 0:00:32]} 24. Rxc7 {[%clk 0:01:09]}  Be4 {[%clk 0:00:17]} 25. Rc1 {[%clk 0:01:06]}  c2 {[%clk 0:00:16]} 26. Nxc2 {[%clk 0:01:04]}  Rd8 {[%clk 0:00:11]} 27. Ne3 {[%clk 0:01:02]}  Rf7 {[%clk 0:00:09]} 28. Rxf7 {[%clk 0:00:58]}  Kxf7 {[%clk 0:00:10]} 29. Rxc5 {[%clk 0:00:58]}  Rd7 {[%clk 0:00:07]} 30. h4 {[%clk 0:00:55]}  Nd3 {[%clk 0:00:06]} 31. Ra5 {[%clk 0:00:52]}  Bb7 {[%clk 0:00:05]} 32. Nf5 {[%clk 0:00:47]}  Kf8 {[%clk 0:00:00]} 33. Nd6 {[%clk 0:00:44]} 1-0


[Site "https://www.chess.com"]

[Event "Titled Tuesday Blitz August 22 Late 2023"]
[White "Petersson, Kjell"]
[Black "Acikel, Mert"]
[WhiteFideId "1705148"]
[BlackFideId "12956465"]
[WhiteElo "2172"]
[BlackElo "2307"]
[Result "0-1"]
[Round "8"]
[TimeControl "180+1"]
[Date "2023.08.22"]
[WhiteClock "0:00:11"]
[BlackClock "0:01:10"]
[Board "139"]

1. d4 {[%clk 0:03:00]}  d5 {[%clk 0:02:59]} 2. Bf4 {[%clk 0:03:01]}  e6 {[%clk 0:02:59]} 3. e3 {[%clk 0:03:02]}  c5 {[%clk 0:02:59]} 4. c3 {[%clk 0:03:01]}  Bd6 {[%clk 0:02:59]} 5. Bg3 {[%clk 0:02:58]}  Qc7 {[%clk 0:02:59]} 6. Nd2 {[%clk 0:02:48]}  Nd7 {[%clk 0:02:59]} 7. Bxd6 {[%clk 0:02:47]}  Qxd6 {[%clk 0:02:59]} 8. f4 {[%clk 0:02:47]}  Ngf6 {[%clk 0:02:58]} 9. Ngf3 {[%clk 0:02:43]}  O-O {[%clk 0:02:56]} 10. Ne5 {[%clk 0:02:39]}  b6 {[%clk 0:02:55]} 11. Bd3 {[%clk 0:02:38]}  a5 {[%clk 0:02:55]} 12. a4 {[%clk 0:02:31]}  Ba6 {[%clk 0:02:55]} 13. Bxa6 {[%clk 0:02:27]}  Rxa6 {[%clk 0:02:54]} 14. Qe2 {[%clk 0:02:27]}  Raa8 {[%clk 0:02:54]} 15. O-O {[%clk 0:02:27]}  Rac8 {[%clk 0:02:50]} 16. g4 {[%clk 0:02:18]}  Ne4 {[%clk 0:02:49]} 17. Rf3 {[%clk 0:02:12]}  Nxd2 {[%clk 0:02:49]} 18. Qxd2 {[%clk 0:02:12]}  f6 {[%clk 0:02:45]} 19. Nxd7 {[%clk 0:02:09]}  Qxd7 {[%clk 0:02:45]} 20. Qc2 {[%clk 0:01:56]}  Qd6 {[%clk 0:02:40]} 21. Rh3 {[%clk 0:01:54]}  g6 {[%clk 0:02:34]} 22. f5 {[%clk 0:01:42]}  exf5 {[%clk 0:02:32]} 23. gxf5 {[%clk 0:01:38]}  g5 {[%clk 0:02:20]} 24. Qe2 {[%clk 0:01:35]}  Qe7 {[%clk 0:02:14]} 25. Qh5 {[%clk 0:01:30]}  Qf7 {[%clk 0:02:13]} 26. Qf3 {[%clk 0:01:21]}  Rfe8 {[%clk 0:02:12]} 27. Re1 {[%clk 0:01:14]}  Re4 {[%clk 0:02:12]} 28. Rg3 {[%clk 0:01:06]}  h6 {[%clk 0:02:06]} 29. Qf1 {[%clk 0:01:02]}  c4 {[%clk 0:02:03]} 30. Rh3 {[%clk 0:00:55]}  Kg7 {[%clk 0:02:02]} 31. Qf3 {[%clk 0:00:50]}  Rce8 {[%clk 0:02:02]} 32. Qg2 {[%clk 0:00:49]}  Qd7 {[%clk 0:02:00]} 33. Qg3 {[%clk 0:00:36]}  R8e7 {[%clk 0:01:53]} 34. Qb8 {[%clk 0:00:35]}  Qxf5 {[%clk 0:01:49]} 35. Rg3 {[%clk 0:00:27]}  Qe6 {[%clk 0:01:33]} 36. Qd8 {[%clk 0:00:21]}  f5 {[%clk 0:01:32]} 37. h4 {[%clk 0:00:16]}  Kg6 {[%clk 0:01:27]} 38. hxg5 {[%clk 0:00:16]}  hxg5 {[%clk 0:01:27]} 39. Qh8 {[%clk 0:00:16]}  Rh4 {[%clk 0:01:15]} 40. Qf8 {[%clk 0:00:14]}  Reh7 {[%clk 0:01:11]} 41. Kf2 {[%clk 0:00:10]}  Rh2+ {[%clk 0:01:10]} 42. Rg2 {[%clk 0:00:11]}  Rxg2+ {[%clk 0:01:11]} 43. Kxg2 {[%clk 0:00:12]}  Qe4+ {[%clk 0:01:11]} 44. Kg3 {[%clk 0:00:11]}  Qg4+ {[%clk 0:01:08]} 45. Kf2 {[%clk 0:00:11]}  Rh2+ {[%clk 0:01:09]} 46. Kf1 {[%clk 0:00:11]}  Qg2# {[%clk 0:01:10]} 0-1


[Site "https://www.chess.com"]

[Event "Titled Tuesday Blitz August 22 Late 2023"]
[White "miraitrunks"]
[Black "Merino Garcia, Rafael II"]
[BlackFideId "2209128"]
[WhiteElo "1988"]
[BlackElo "2349"]
[Result "0-1"]
[Round "8"]
[TimeControl "180+1"]
[Date "2023.08.22"]
[WhiteClock "0:00:06"]
[BlackClock "0:01:14"]
[Board "142"]

1. e4 {[%clk 0:03:00]}  d6 {[%clk 0:03:00]} 2. d4 {[%clk 0:03:00]}  Nd7 {[%clk 0:03:01]} 3. Nc3 {[%clk 0:03:00]}  g6 {[%clk 0:03:02]} 4. Nge2 {[%clk 0:03:00]}  Bg7 {[%clk 0:03:02]} 5. g3 {[%clk 0:03:01]}  e6 {[%clk 0:03:03]} 6. Bg2 {[%clk 0:03:01]}  Ne7 {[%clk 0:03:04]} 7. O-O {[%clk 0:03:02]}  O-O {[%clk 0:03:04]} 8. Be3 {[%clk 0:03:02]}  h6 {[%clk 0:03:04]} 9. Qd2 {[%clk 0:03:02]}  Kh7 {[%clk 0:03:04]} 10. f4 {[%clk 0:03:03]}  f5 {[%clk 0:03:01]} 11. Rad1 {[%clk 0:03:00]}  Nf6 {[%clk 0:02:58]} 12. d5 {[%clk 0:02:59]}  exd5 {[%clk 0:02:56]} 13. exd5 {[%clk 0:02:38]}  Bd7 {[%clk 0:02:42]} 14. Bd4 {[%clk 0:02:38]}  Qe8 {[%clk 0:02:40]} 15. Rfe1 {[%clk 0:02:37]}  Qf7 {[%clk 0:02:40]} 16. a4 {[%clk 0:02:29]}  Rad8 {[%clk 0:02:32]} 17. a5 {[%clk 0:02:26]}  c5 {[%clk 0:02:31]} 18. dxc6 {[%clk 0:02:25]}  Bxc6 {[%clk 0:02:29]} 19. Bxa7 {[%clk 0:02:23]}  Bxg2 {[%clk 0:02:22]} 20. Kxg2 {[%clk 0:02:24]}  d5 {[%clk 0:02:21]} 21. Nd4 {[%clk 0:02:22]}  Ne4 {[%clk 0:02:20]} 22. Qe3 {[%clk 0:02:19]}  Nc6 {[%clk 0:02:14]} 23. Nxc6 {[%clk 0:02:14]}  bxc6 {[%clk 0:02:14]} 24. Nxe4 {[%clk 0:01:45]}  fxe4 {[%clk 0:02:13]} 25. Bb6 {[%clk 0:01:42]}  Rde8 {[%clk 0:02:05]} 26. c3 {[%clk 0:01:42]}  h5 {[%clk 0:01:58]} 27. Bc5 {[%clk 0:01:36]}  Rg8 {[%clk 0:01:53]} 28. a6 {[%clk 0:01:35]}  Bh6 {[%clk 0:01:46]} 29. a7 {[%clk 0:01:33]}  g5 {[%clk 0:01:42]} 30. fxg5 {[%clk 0:01:26]}  Rxg5 {[%clk 0:01:39]} 31. Bd6 {[%clk 0:01:09]}  Rf5 {[%clk 0:01:37]} 32. Qb6 {[%clk 0:01:02]}  Qd7 {[%clk 0:01:22]} 33. Bb8 {[%clk 0:00:58]}  e3 {[%clk 0:01:21]} 34. a8=Q {[%clk 0:00:50]}  Rf2+ {[%clk 0:01:20]} 35. Kg1 {[%clk 0:00:50]}  Qh3 {[%clk 0:01:20]} 36. Qab7+ {[%clk 0:00:10]}  Kg8 {[%clk 0:01:18]} 37. Qf7+ {[%clk 0:00:09]}  Kxf7 {[%clk 0:01:15]} 38. Rf1 {[%clk 0:00:06]}  Qxh2# {[%clk 0:01:14]} 0-1


[Site "https://www.chess.com"]

[Event "Titled Tuesday Blitz August 22 Late 2023"]
[White "disciplinedbrat"]
[Black "Capp, Stephen"]
[BlackFideId "2027089"]
[WhiteElo "2325"]
[BlackElo "2179"]
[Result "1-0"]
[Round "8"]
[TimeControl "180+1"]
[Date "2023.08.22"]
[WhiteClock "0:00:52"]
[BlackClock "0:00:12"]
[Board "143"]

1. Nc3 {[%clk 0:03:00]}  e5 {[%clk 0:02:58]} 2. d4 {[%clk 0:03:00]}  exd4 {[%clk 0:02:57]} 3. Qxd4 {[%clk 0:03:01]}  Nc6 {[%clk 0:02:57]} 4. Qd1 {[%clk 0:03:01]}  Nf6 {[%clk 0:02:55]} 5. Nf3 {[%clk 0:03:02]}  Be7 {[%clk 0:02:53]} 6. e4 {[%clk 0:03:01]}  d6 {[%clk 0:02:52]} 7. Bc4 {[%clk 0:03:01]}  O-O {[%clk 0:02:50]} 8. h3 {[%clk 0:03:02]}  Be6 {[%clk 0:02:48]} 9. Nd5 {[%clk 0:03:00]}  Bxd5 {[%clk 0:02:47]} 10. exd5 {[%clk 0:03:00]}  Ne5 {[%clk 0:02:46]} 11. Nxe5 {[%clk 0:03:00]}  dxe5 {[%clk 0:02:46]} 12. O-O {[%clk 0:03:01]}  h6 {[%clk 0:02:44]} 13. Re1 {[%clk 0:03:00]}  Bd6 {[%clk 0:02:44]} 14. Bb3 {[%clk 0:02:58]}  a6 {[%clk 0:02:44]} 15. c4 {[%clk 0:02:58]}  b5 {[%clk 0:02:43]} 16. cxb5 {[%clk 0:02:56]}  axb5 {[%clk 0:02:43]} 17. Bc2 {[%clk 0:02:56]}  Re8 {[%clk 0:02:36]} 18. Qd3 {[%clk 0:02:55]}  e4 {[%clk 0:02:33]} 19. Qxb5 {[%clk 0:02:55]}  Qe7 {[%clk 0:02:29]} 20. Be3 {[%clk 0:02:40]}  Qe5 {[%clk 0:02:28]} 21. g3 {[%clk 0:02:35]}  Nxd5 {[%clk 0:02:18]} 22. Bd2 {[%clk 0:01:52]}  Rab8 {[%clk 0:02:08]} 23. Qc4 {[%clk 0:01:51]}  e3 {[%clk 0:01:24]} 24. Bxe3 {[%clk 0:01:39]}  Nxe3 {[%clk 0:01:22]} 25. Rxe3 {[%clk 0:01:35]}  Qxb2 {[%clk 0:00:59]} 26. Rb1 {[%clk 0:01:30]}  Qf6 {[%clk 0:00:50]} 27. Rxb8 {[%clk 0:01:28]}  Rxb8 {[%clk 0:00:50]} 28. Bb3 {[%clk 0:01:29]}  Rf8 {[%clk 0:00:44]} 29. Qd5 {[%clk 0:01:24]}  Qg6 {[%clk 0:00:38]} 30. Kg2 {[%clk 0:01:22]}  Kh8 {[%clk 0:00:35]} 31. Rf3 {[%clk 0:01:21]}  f6 {[%clk 0:00:32]} 32. Bc4 {[%clk 0:01:19]}  Qg5 {[%clk 0:00:28]} 33. Rf5 {[%clk 0:01:16]}  Qc1 {[%clk 0:00:25]} 34. Bd3 {[%clk 0:01:15]}  Re8 {[%clk 0:00:21]} 35. Rf3 {[%clk 0:01:03]}  Qa1 {[%clk 0:00:17]} 36. Qf5 {[%clk 0:00:59]}  Kg8 {[%clk 0:00:15]} 37. Bc4+ {[%clk 0:00:54]}  Kf8 {[%clk 0:00:14]} 38. Qd5 {[%clk 0:00:52]}  Re7 {[%clk 0:00:12]} 39. Qg8# {[%clk 0:00:52]} 1-0


[Site "https://www.chess.com"]

[Event "Titled Tuesday Blitz August 22 Late 2023"]
[White "laskakid"]
[Black "Fominykh, Maria"]
[BlackFideId "4142411"]
[WhiteElo "2131"]
[BlackElo "2294"]
[Result "0-1"]
[Round "8"]
[TimeControl "180+1"]
[Date "2023.08.22"]
[WhiteClock "0:00:04"]
[BlackClock "0:00:04"]
[Board "144"]

1. e4 {[%clk 0:03:00]}  d6 {[%clk 0:02:59]} 2. d4 {[%clk 0:03:00]}  Nf6 {[%clk 0:02:59]} 3. Nc3 {[%clk 0:02:59]}  Nbd7 {[%clk 0:03:00]} 4. Nf3 {[%clk 0:02:59]}  e5 {[%clk 0:03:00]} 5. Rg1 {[%clk 0:02:52]}  c6 {[%clk 0:02:59]} 6. g4 {[%clk 0:02:49]}  exd4 {[%clk 0:02:53]} 7. Nxd4 {[%clk 0:02:48]}  Nc5 {[%clk 0:02:53]} 8. g5 {[%clk 0:02:42]}  Nfxe4 {[%clk 0:02:52]} 9. Nxe4 {[%clk 0:02:37]}  Nxe4 {[%clk 0:02:53]} 10. Qe2 {[%clk 0:02:24]}  Qe7 {[%clk 0:02:52]} 11. Bg2 {[%clk 0:02:22]}  d5 {[%clk 0:02:38]} 12. Bf4 {[%clk 0:02:09]}  Nc5 {[%clk 0:02:22]} 13. Be3 {[%clk 0:02:00]}  Ne6 {[%clk 0:02:16]} 14. O-O-O {[%clk 0:01:43]}  Nxd4 {[%clk 0:02:15]} 15. Rxd4 {[%clk 0:01:43]}  Bf5 {[%clk 0:02:07]} 16. Re1 {[%clk 0:01:32]}  O-O-O {[%clk 0:02:03]} 17. Ra4 {[%clk 0:01:21]}  a6 {[%clk 0:01:55]} 18. Qf3 {[%clk 0:01:08]}  g6 {[%clk 0:01:24]} 19. Re2 {[%clk 0:00:55]}  Bg7 {[%clk 0:01:10]} 20. Bb6 {[%clk 0:00:49]}  Be4 {[%clk 0:00:59]} 21. Qg4+ {[%clk 0:00:35]}  f5 {[%clk 0:00:56]} 22. gxf6+ {[%clk 0:00:33]}  Qd7 {[%clk 0:00:43]} 23. Qxd7+ {[%clk 0:00:27]}  Rxd7 {[%clk 0:00:42]} 24. fxg7 {[%clk 0:00:27]}  Rxg7 {[%clk 0:00:42]} 25. Bxe4 {[%clk 0:00:27]}  dxe4 {[%clk 0:00:40]} 26. Raxe4 {[%clk 0:00:27]}  Rf7 {[%clk 0:00:32]} 27. Re7 {[%clk 0:00:25]}  Rhf8 {[%clk 0:00:29]} 28. Rxf7 {[%clk 0:00:19]}  Rxf7 {[%clk 0:00:30]} 29. Rd2 {[%clk 0:00:19]}  Rf8 {[%clk 0:00:28]} 30. Kd1 {[%clk 0:00:19]}  Re8 {[%clk 0:00:21]} 31. f3 {[%clk 0:00:18]}  Rf8 {[%clk 0:00:20]} 32. Ke2 {[%clk 0:00:18]}  Re8+ {[%clk 0:00:20]} 33. Kf2 {[%clk 0:00:18]}  a5 {[%clk 0:00:17]} 34. Kg3 {[%clk 0:00:18]}  a4 {[%clk 0:00:17]} 35. a3 {[%clk 0:00:19]}  Rf8 {[%clk 0:00:16]} 36. Kg4 {[%clk 0:00:18]}  h6 {[%clk 0:00:17]} 37. f4 {[%clk 0:00:18]}  Rg8 {[%clk 0:00:16]} 38. h3 {[%clk 0:00:17]}  Rf8 {[%clk 0:00:16]} 39. Rd6 {[%clk 0:00:17]}  Rg8 {[%clk 0:00:15]} 40. Kf3 {[%clk 0:00:16]}  Kb8 {[%clk 0:00:09]} 41. Rd8+ {[%clk 0:00:16]}  Rxd8 {[%clk 0:00:08]} 42. Bxd8 {[%clk 0:00:16]}  Kc8 {[%clk 0:00:08]} 43. Bf6 {[%clk 0:00:16]}  Kd7 {[%clk 0:00:08]} 44. Bg7 {[%clk 0:00:17]}  h5 {[%clk 0:00:09]} 45. Ke4 {[%clk 0:00:17]}  Ke6 {[%clk 0:00:09]} 46. Bh6 {[%clk 0:00:17]}  b6 {[%clk 0:00:08]} 47. Bg5 {[%clk 0:00:17]}  b5 {[%clk 0:00:06]} 48. h4 {[%clk 0:00:17]}  c5 {[%clk 0:00:06]} 49. Bh6 {[%clk 0:00:16]}  b4 {[%clk 0:00:06]} 50. Bf8 {[%clk 0:00:15]}  bxa3 {[%clk 0:00:05]} 51. bxa3 {[%clk 0:00:16]}  c4 {[%clk 0:00:06]} 52. Bb4 {[%clk 0:00:15]}  Kf6 {[%clk 0:00:05]} 53. Bd2 {[%clk 0:00:15]}  Ke6 {[%clk 0:00:05]} 54. Kd4 {[%clk 0:00:15]}  Kf5 {[%clk 0:00:05]} 55. Kxc4 {[%clk 0:00:16]}  Kg4 {[%clk 0:00:06]} 56. Kd4 {[%clk 0:00:16]}  Kxh4 {[%clk 0:00:06]} 57. c4 {[%clk 0:00:15]}  Kg4 {[%clk 0:00:05]} 58. c5 {[%clk 0:00:14]}  h4 {[%clk 0:00:05]} 59. Be3 {[%clk 0:00:14]}  h3 {[%clk 0:00:05]} 60. c6 {[%clk 0:00:13]}  h2 {[%clk 0:00:03]} 61. c7 {[%clk 0:00:14]}  h1=Q {[%clk 0:00:03]} 62. c8=Q+ {[%clk 0:00:14]}  Kg3 {[%clk 0:00:03]} 63. Qg8 {[%clk 0:00:12]}  Qd1+ {[%clk 0:00:03]} 64. Ke4 {[%clk 0:00:12]}  Qc2+ {[%clk 0:00:03]} 65. Ke5 {[%clk 0:00:12]}  Qb2+ {[%clk 0:00:03]} 66. Bd4 {[%clk 0:00:12]}  Qe2+ {[%clk 0:00:02]} 67. Kd5 {[%clk 0:00:11]}  Qa2+ {[%clk 0:00:02]} 68. Kd6 {[%clk 0:00:09]}  Qxg8 {[%clk 0:00:03]} 69. Kc5 {[%clk 0:00:08]}  Qf7 {[%clk 0:00:03]} 70. Kb4 {[%clk 0:00:08]}  Qd5 {[%clk 0:00:02]} 71. Be5 {[%clk 0:00:08]}  Qb3+ {[%clk 0:00:03]} 72. Kc5 {[%clk 0:00:08]}  Qxa3+ {[%clk 0:00:03]} 73. Kd5 {[%clk 0:00:08]}  Qb3+ {[%clk 0:00:03]} 74. Ke4 {[%clk 0:00:04]}  Kg4 {[%clk 0:00:04]} 0-1


[Site "https://www.chess.com"]